bitfinex-derivatives/quotes_ETHF0:USTF0_20251005
["timestamp","ask_amount","ask_price","bid_price","bid_amount"]
[1759649207312,0.60023054,4578.2,4578.1,0.7554]
[1759649208012,0.45103054,4578.2,4578.1,0.7554]
[1759649212813,0.09493727,4579.1,4579.0,0.1302]
[1759649212814,0.00203727,4579.1,4579.0,0.1302]
[1759649213013,0.74657165,4579.1,4579.0,0.4594]
[1759649213207,0.83947165,4579.1,4579.0,0.4594]
[1759649213511,0.74657165,4579.1,4579.0,0.6798]
[1759649216017,0.83947165,4579.1,4579.0,0.4594]
[1759649216809,0.74657165,4579.1,4579.0,0.6798]
[1759649217014,0.74657165,4579.1,4579.0,0.9023]
[1759649221016,0.59797165,4579.1,4579.0,0.9023]
[1759649221414,0.59797318,4579.1,4579.0,0.9023]
[1759649223117,0.44937318,4579.1,4579.0,0.9023]
[1759649225125,0.59797318,4579.1,4579.0,0.9023]
[1759649225627,0.74657318,4579.1,4579.0,0.9023]
[1759649228920,0.59797318,4579.1,4579.0,0.9023]
[1759649229118,0.44937318,4579.1,4579.0,0.9023]
[1759649229518,0.59797318,4579.1,4579.0,0.9023]
[1759649230726,0.74657318,4579.1,4579.0,0.9023]
[1759649231721,0.59797318,4579.1,4579.0,0.9023]
[1759649239935,0.83927318,4579.1,4578.5,0.1302]
[1759649240137,1.37908132,4578.7,4578.6,0.3398]
[1759649240442,1.73371723,4578.7,4578.6,0.5582]
[1759649240835,1.82641723,4578.7,4578.6,0.3398]
[1759649241236,1.82641723,4578.7,4578.2,0.3398]
[1759649241237,0.2966,4578.3,4578.2,0.3398]
[1759649241434,4.58688132,4578.3,4578.2,0.3398]
[1759649241641,5.03421723,4578.3,4578.2,0.3398]
[1759649243439,0.3893,4578.2,4578.1,0.3398]
[1759649243638,0.83663591,4578.2,4578.1,0.3398]
[1759649246540,1.05663591,4578.2,4578.1,0.3398]
[1759649247345,1.05663591,4578.2,4577.5,0.1279]
[1759649247541,0.2966,4577.7,4577.6,0.5582]
[1759649247741,0.74393591,4577.7,4577.6,0.5582]
[1759649249144,0.74360105,4577.7,4577.6,0.5582]
[1759649249343,0.74360105,4577.7,4577.6,0.78]
[1759649250742,1.73338237,4577.7,4577.6,0.5582]
[1759649250942,1.82608237,4577.7,4577.6,0.5582]
[1759649251537,1.73338237,4577.7,4577.6,0.5582]
[1759649251742,0.74360105,4577.7,4577.6,0.5582]
[1759649252744,0.74360105,4577.7,4577.6,0.7704]
[1759649256539,0.74360105,4577.7,4554.2,7.62817539]
[1759649256540,0.2191,4576.7,4576.5,0.35490858]
[1759649256847,3.2078,4577.5,4577.2,0.39317]
[1759649257153,3.2078,4577.5,4577.4,0.4335]
[1759649257450,3.8680581,4577.5,4577.4,0.4335]
[1759649258845,3.8680581,4577.5,4577.4,0.7714]
[1759649259051,4.0871581,4577.5,4577.4,0.7714]
[1759649259650,4.0871581,4577.5,4577.4,1.16456]
[1759649260046,3.8680581,4577.5,4577.4,1.16456]
[1759649260246,3.6543581,4577.5,4577.4,1.16456]
[1759649261050,3.2078,4577.5,4577.4,1.16456]
[1759649261248,3.65417549,4577.5,4577.4,1.16456]
[1759649262252,3.86787549,4577.5,4577.4,1.16456]
[1759649264052,4.08697549,4577.5,4577.4,1.16456]
[1759649266447,3.86787549,4577.5,4577.4,1.16456]
[1759649266945,4.36837549,4577.5,4577.4,0.5592]
[1759649267146,3.86787549,4577.5,4577.4,0.7714]
[1759649267554,4.08697549,4577.5,4577.4,0.7714]
[1759649268148,4.36837549,4577.5,4577.4,0.7714]
[1759649268348,4.36837549,4577.5,4577.4,0.5592]
[1759649268560,4.36837549,4577.5,4577.4,0.5591]
[1759649269151,4.58837549,4577.5,4577.4,0.5591]
[1759649270559,4.58837549,4577.5,4577.4,0.7654]
[1759649270560,3.65417549,4577.5,4577.4,0.7654]
[1759649271260,3.86787549,4577.5,4577.4,0.7654]
[1759649272462,0.44637549,4577.5,4577.4,0.7654]
[1759649272663,0.2137,4578.1,4578.0,0.8593]
[1759649272858,0.66088261,4578.1,4578.0,0.8593]
[1759649273153,0.66088261,4578.1,4578.0,1.2524]
[1759649273552,1.16138261,4578.1,4578.0,1.2524]
[1759649274156,0.66088261,4578.1,4578.0,1.2524]
[1759649274457,0.44718261,4578.1,4578.0,1.2524]
[1759649275363,0.6528,4578.6,4578.5,1.25237]
[1759649275555,1.09983922,4578.6,4578.5,1.25237]
[1759649275757,1.38123922,4578.6,4578.5,1.25237]
[1759649275958,1.16123922,4578.6,4578.5,1.25237]
[1759649276361,0.87983922,4578.6,4578.5,1.25237]
[1759649279459,0.87983922,4578.6,4578.5,0.8593]
[1759649279861,1.16123922,4578.6,4578.5,0.8593]
[1759649281463,1.16084283,4578.6,4578.5,0.8593]
[1759649281962,0.66034283,4578.6,4578.5,0.8593]
[1759649282469,0.44664283,4578.6,4578.5,0.8593]
[1759649282863,3.2078,4578.8,4578.7,0.7355]
[1759649283064,3.65429592,4578.8,4578.7,0.7355]
[1759649283961,0.44649592,4578.8,4578.7,0.7355]
[1759649284164,0.00203727,4579.1,4579.0,0.39302]
[1759649284369,0.21573727,4579.1,4579.0,0.8593]
[1759649284557,0.66197704,4579.1,4579.0,0.8593]
[1759649286669,0.88107704,4579.1,4579.0,0.8593]
[1759649287067,1.16247704,4579.1,4579.0,0.8593]
[1759649287764,1.16247704,4579.1,4579.0,0.308]
[1759649289466,1.16247704,4579.1,4579.0,0.5292]
[1759649291874,0.88107704,4579.1,4579.0,0.8593]
[1759649292271,1.16247704,4579.1,4579.0,0.8593]
[1759649294374,1.16247704,4579.1,4579.0,0.653]
[1759649294575,1.16247704,4579.1,4579.0,0.8593]
[1759649294776,0.88107704,4579.1,4579.0,0.8593]
[1759649299976,1.16157704,4579.1,4579.0,0.8593]
[1759649300776,1.16157704,4579.1,4579.0,0.653]
[1759649300978,1.16157704,4579.1,4579.0,0.308]
[1759649302176,0.7031,4578.3,4578.2,0.313]
[1759649302378,1.08883977,4578.3,4578.2,0.7511]
[1759649302579,0.87353977,4578.3,4578.2,0.7511]
[1759649303879,0.87353977,4578.3,4578.2,1.14419]
[1759649304283,0.87353977,4578.3,4578.2,0.7511]
[1759649304483,1.08883977,4578.3,4578.2,0.7511]
[1759649304684,0.44623977,4578.3,4578.2,1.14419]
[1759649304882,0.44623977,4578.7,4578.2,1.14419]
[1759649305082,0.2073,4578.6,4578.5,0.4459]
[1759649305278,1.14933977,4578.6,4578.5,0.6614]
[1759649306187,0.86883977,4578.6,4578.5,0.884]
[1759649306480,0.44623977,4578.6,4578.5,1.27707]
[1759649306678,0.22,4578.9,4578.8,1.14414]
[1759649306877,0.87455969,4578.9,4578.8,0.7511]
[1759649307491,0.65455969,4578.9,4578.8,0.7511]
[1759649310099,0.86985969,4578.9,4578.8,0.7511]
[1759649310486,0.44725969,4578.9,4578.8,0.7511]
[1759649312291,0.44725969,4578.9,4578.8,1.89648332]
[1759649316602,0.87595969,4578.9,4578.8,0.7511]
[1759649316903,1.15695969,4578.9,4578.8,0.7511]
[1759649317094,0.87595969,4578.9,4578.8,0.7511]
[1759649318400,0.87595969,4578.9,4578.8,0.9711]
[1759649319102,0.88866566,4578.9,4578.8,0.9711]
[1759649320209,0.88866566,4578.9,4578.8,0.7511]
[1759649320406,0.88866566,4578.9,4578.8,0.9711]
[1759649320901,0.88866566,4578.9,4578.8,0.9701]
[1759649323003,0.88866566,4578.9,4578.8,0.7511]
[1759649323209,0.88866566,4578.9,4578.8,0.9701]
[1759649324403,0.88866566,4578.9,4578.8,0.7511]
[1759649324608,0.88866566,4578.9,4578.8,0.9701]
[1759649326107,1.16966566,4578.9,4578.8,0.9701]
[1759649326507,0.88866566,4578.9,4578.8,0.9701]
[1759649328110,1.16916566,4578.9,4578.8,0.9701]
[1759649328814,1.16916566,4578.9,4578.8,0.313]
[1759649329003,6.16916566,4578.9,4578.6,0.39305]
[1759649329204,0.7206,4578.7,4578.6,0.3069]
[1759649329508,0.4401,4578.2,4578.1,0.7346]
[1759649329715,0.90006566,4578.2,4578.1,0.7346]
[1759649329907,1.18056566,4578.2,4578.1,0.3069]
[1759649330108,1.18056566,4578.2,4577.7,0.39313]
[1759649330412,0.4401,4577.9,4577.8,0.3069]
[1759649330609,0.7206,4577.9,4577.8,0.3069]
[1759649330812,1.18056566,4577.9,4577.8,0.3069]
[1759649331506,1.18056566,4577.9,4577.8,0.5276]
[1759649332615,1.18056566,4577.9,4577.8,0.3069]
[1759649333310,1.18056566,4577.9,4577.6,0.3069]
[1759649333510,0.7206,4577.7,4577.6,0.3069]
[1759649333708,1.18056566,4577.7,4577.6,0.3069]
[1759649334911,0.7206,4577.2,4577.1,0.92078]
[1759649335113,0.4401,4577.2,4577.1,1.12778]
[1759649335816,0.2169,4577.2,4577.1,1.12778]
[1759649336609,0.4401,4577.6,4577.5,1.26005]
[1759649337010,0.8954757,4577.6,4577.5,1.26005]
[1759649338009,1.1759757,4577.6,4577.5,0.70005]
[1759649338208,1.1759757,4577.6,4577.5,0.3069]
[1759649338411,1.1759757,4577.6,4577.5,0.5276]
[1759649338619,1.1759757,4577.6,4577.5,0.8669]
[1759649338819,0.8954757,4577.6,4577.5,0.8669]
[1759649339417,1.1759757,4577.6,4577.5,0.8669]
[1759649339814,0.4401,4577.6,4577.5,0.8669]
[1759649340315,0.7206,4577.6,4577.5,0.8669]
[1759649340515,1.17564939,4577.6,4577.5,0.6599]
[1759649341919,0.89514939,4577.6,4577.5,0.8669]
[1759649342220,0.4401,4577.6,4577.0,4.41692328]
[1759649342421,0.8716,4577.5,4577.4,0.39316]
[1759649342820,0.8716,4577.5,4577.4,0.52626]
[1759649343816,0.8716,4577.5,4577.4,0.65936]
[1759649347721,0.3084,4577.5,4577.4,0.96156]
[1759649348224,3.3309,4578.0,4577.9,0.65932]
[1759649348225,3.8562,4578.0,4577.9,0.65932]
[1759649348525,4.31115191,4578.0,4577.9,0.65932]
[1759649348723,4.53435191,4578.0,4577.9,0.65932]
[1759649351324,1.32655191,4578.0,4577.9,0.65932]
[1759649351826,1.32655191,4578.0,4577.9,0.52622]
[1759649359733,1.32655191,4578.0,4577.9,0.39312]
[1759649361933,0.326,4577.9,4577.2,0.99032328]
[1759649362130,0.2246,4577.6,4577.5,0.39315]
[1759649362435,1.23035191,4577.6,4577.5,0.39315]
[1759649363233,1.23035191,4577.6,4577.2,0.39318]
[1759649363234,0.7754,4577.3,4577.2,0.39318]
[1759649363428,1.23035191,4577.3,4577.2,0.52718]
[1759649368035,1.23035191,4577.3,4577.2,1.51750328]
[1759649368230,1.23035191,4577.3,4577.2,0.39318]
[1759649370836,0.9006,4577.0,4576.9,3.601]
[1759649371035,1.35555191,4577.0,4576.9,3.82]
[1759649371331,1.35555191,4577.0,4576.9,3.9542]
[1759649372041,1.35555191,4577.0,4576.9,3.601]
[1759649372233,1.35555191,4577.0,4576.9,3.82]
[1759649372428,1.35555191,4577.0,4576.9,3.601]
[1759649372634,1.35555191,4577.0,4576.9,3.82]
[1759649373435,1.35555191,4577.0,4576.9,3.2078]
[1759649373640,0.7488,4576.8,4576.7,0.39322]
[1759649373841,0.4381,4576.6,4576.5,0.39543858]
[1759649374030,1.20375191,4576.6,4576.5,0.61443858]
[1759649374635,1.20375191,4576.6,4576.5,0.39543858]
[1759649374837,1.20375191,4576.6,4576.5,0.00220858]
[1759649376544,0.8819,4576.0,4575.9,3.2078]
[1759649376747,1.33685191,4576.0,4575.9,3.2078]
[1759649377440,1.33685191,4576.0,4575.9,3.20970282]
[1759649378346,0.8819,4576.0,4575.9,3.20970282]
[1759649379046,0.8819,4576.0,4575.9,3.34740282]
[1759649379354,0.8819,4576.0,4575.9,3.20970282]
[1759649379542,0.8819,4576.0,4575.9,3.34740282]
[1759649380544,0.8819,4576.0,4575.9,4.4754261]
[1759649380749,0.4438,4576.0,4575.9,4.5615261]
[1759649381150,0.3107,4576.4,4576.3,0.1377]
[1759649381350,0.7488,4576.4,4576.3,0.2754]
[1759649381942,0.7488,4576.4,4576.3,0.53095]
[1759649382138,0.7488,4576.4,4576.3,0.39325]
[1759649383843,0.7488,4576.4,4576.3,0.53095]
[1759649384649,0.7488,4576.4,4576.3,0.66865]
[1759649384849,0.5254,4576.4,4576.3,0.66865]
[1759649385144,0.5254,4576.4,4576.3,0.75475]
[1759649385338,0.7488,4576.4,4576.3,0.66865]
[1759649385544,0.6585,4576.0,4575.9,3.87839282]
[1759649385745,0.4438,4576.0,4575.9,3.96449282]
[1759649387248,0.6585,4576.0,4575.9,3.87839282]
[1759649387548,0.885,4576.0,4575.9,3.87839282]
[1759649387749,0.885,4576.0,4575.9,0.00190282]
[1759649387945,0.2204,4575.2,4575.1,0.7367]
[1759649388147,1.75172328,4575.2,4575.1,0.5261]
[1759649388644,0.7614,4575.2,4575.1,0.7367]
[1759649389151,0.7614,4575.2,4575.1,0.5261]
[1759649389350,0.76356448,4575.2,4575.1,0.52849971]
[1759649390845,0.76356448,4575.2,4575.1,0.21839971]
[1759649391043,4.96168776,4575.2,4575.1,0.00239971]
[1759649391244,4.96168776,4575.2,4575.1,0.52849971]
[1759649391450,4.96168776,4575.2,4575.1,0.00239971]
[1759649393350,9.96168776,4575.2,4575.1,0.00239971]
[1759649393551,10.41204581,4575.2,4575.1,0.00239971]
[1759649395040,4.64172253,4575.2,4575.1,0.00239971]
[1759649395240,4.42172253,4575.2,4575.1,0.00239971]
[1759649395548,5.63204581,4575.2,4575.1,0.00239971]
[1759649396551,5.63204581,4575.2,4575.1,0.52849971]
[1759649396757,5.63204581,4575.2,4575.1,0.21839971]
[1759649397250,5.63204581,4575.2,4575.1,0.00239971]
[1759649398653,6.62236909,4575.2,4575.1,0.00239971]
[1759649398854,5.63204581,4575.2,4575.1,0.00239971]
[1759649399258,6.62236909,4575.2,4575.1,0.00239971]
[1759649399845,9.51915367,4575.2,4575.1,0.00239971]
[1759649400154,9.51915367,4575.2,4574.0,0.3101]
[1759649400351,0.3145,4574.0,4573.9,0.2106]
[1759649400556,0.2204,4574.3,4574.2,0.7367]
[1759649401057,0.4404,4574.5,4574.4,0.7367]
[1759649401356,0.7549,4574.5,4574.4,0.73846425]
[1759649401949,0.5349,4574.5,4574.4,0.73846425]
[1759649403348,3.2078,4574.6,4574.4,0.73846425]
[1759649403552,0.00216448,4575.2,4575.1,0.7367]
[1759649404358,0.3145,4576.3,4576.1,0.39327]
[1759649404559,3.4282,4576.5,4576.4,0.4266]
[1759649404756,3.4282,4576.5,4576.4,0.7367]
[1759649404757,3.65851784,4576.5,4576.4,0.7367]
[1759649404947,3.4282,4577.0,4576.9,0.4266]
[1759649405152,4.41987006,4577.0,4576.9,0.7367]
[1759649405556,4.42268914,4577.0,4576.9,1.1299]
[1759649405756,4.42268914,4577.0,4576.5,0.1359]
[1759649405757,4.55448914,4577.0,4576.5,0.1359]
[1759649405958,0.2204,4576.1,4576.0,0.5625]
[1759649406166,0.5349,4576.8,4576.7,0.4266]
[1759649406354,0.45066665,4576.8,4576.7,0.81982]
[1759649406556,3.21061908,4577.0,4576.9,0.4266]
[1759649406753,3.88164088,4577.0,4576.9,0.7367]
[1759649406949,0.67384088,4577.0,4576.9,0.7367]
[1759649407150,0.67384088,4577.0,4576.9,1.1299]
[1759649407753,0.45344088,4577.0,4576.9,1.1299]
[1759649407964,0.45344088,4577.0,4576.9,0.7367]
[1759649408760,0.00281908,4577.0,4576.9,2.27773791]
[1759649409066,0.00281908,4577.0,4576.9,6.1299]
[1759649410161,0.22321908,4577.0,4576.9,6.1299]
[1759649410662,0.22321908,4577.0,4576.9,6.3499]
[1759649410959,0.22321908,4577.0,4576.9,6.1299]
[1759649411358,0.76421908,4577.0,4576.9,0.7367]
[1759649411867,0.7614,4576.4,4576.3,3.9445]
[1759649412666,0.7614,4576.4,4576.3,3.2078]
[1759649413257,0.7614,4576.4,4575.8,0.5311]
[1759649413258,0.3145,4576.3,4575.8,0.5311]
[1759649413458,0.2204,4575.9,4575.8,0.9577]
[1759649413661,0.7614,4576.3,4576.2,0.7367]
[1759649414566,3.2078,4576.4,4576.3,0.39325]
[1759649414767,3.2078,4576.4,4576.3,1.12995]
[1759649415067,3.2078,4576.4,4576.3,1.35095]
[1759649415363,0.89601908,4577.0,4576.6,0.3101]
[1759649415566,0.7614,4576.7,4576.6,0.5261]
[1759649416659,0.7614,4576.7,4576.6,0.7367]
[1759649416869,0.2204,4576.7,4576.6,0.7367]
[1759649417464,0.22751908,4577.0,4576.9,0.7594]
[1759649417662,0.68309863,4577.0,4576.9,0.7594]
[1759649417968,0.00281908,4577.0,4576.9,0.7594]
[1759649418665,0.22751908,4577.0,4576.9,0.7594]
[1759649419066,0.25763771,4577.0,4576.9,0.7594]
[1759649419370,0.47083771,4577.0,4576.9,0.7594]
[1759649419563,0.47083771,4577.0,4576.0,3.3437]
[1759649419564,0.91993771,4577.0,4576.6,0.3157]
[1759649419762,0.91993771,4577.0,4576.3,0.221]
[1759649419962,0.60493771,4577.0,4576.5,0.51713]
[1759649420167,0.7529,4576.7,4576.6,0.7594]
[1759649420974,0.03011863,4576.8,4576.7,0.39322]
[1759649421273,0.25481863,4576.8,4576.7,1.15262]
[1759649421872,0.25481863,4576.8,4576.7,0.7594]
[1759649422073,0.78301863,4576.8,4576.7,0.7594]
[1759649422366,0.7529,4576.2,4576.1,0.5394]
[1759649423070,0.78301863,4576.2,4576.1,0.7594]
[1759649423268,0.25481863,4576.2,4576.1,0.7594]
[1759649423870,0.56981863,4576.2,4576.1,0.7594]
[1759649424067,0.03011863,4576.2,4576.1,0.7594]
[1759649426770,0.03011863,4576.2,4574.8,11.00317031]
[1759649426771,0.6929,4575.1,4574.8,4.37642031]
[1759649426976,0.2247,4574.9,4574.8,0.7594]
[1759649427269,0.46801863,4574.9,4574.8,0.7594]
[1759649429972,3.2078,4575.2,4575.0,0.1239]
[1759649430271,0.222,4576.0,4575.2,0.39334]
[1759649430474,0.89388186,4575.9,4575.8,0.5394]
[1759649432176,0.89388186,4575.9,4575.8,0.7594]
[1759649434272,0.45598186,4575.9,4575.8,1.15269]
[1759649436680,0.67108186,4575.9,4575.8,0.7436]
[1759649437271,0.89708186,4575.9,4575.8,0.7436]
[1759649439082,1.15298186,4575.9,4575.8,0.3157]
[1759649439676,0.89708186,4575.9,4575.8,0.5252]
[1759649440876,0.89708186,4575.9,4575.8,0.7436]
[1759649441574,1.15298186,4575.9,4575.8,0.3157]
[1759649441776,1.15298186,4575.9,4575.5,0.1239]
[1759649441777,0.4411,4574.5,4574.4,0.52486425]
[1759649442077,2.3071341,4574.5,4574.4,0.00176425]
[1759649442277,2.3071341,4574.5,4574.4,0.52486425]
[1759649442477,2.5311341,4574.5,4574.4,0.31536425]
[1759649443279,2.6530341,4574.5,4574.4,0.00176425]
[1759649443677,7.6530341,4574.5,4574.4,0.00176425]
[1759649443869,7.6530341,4574.5,4573.3,0.3136]
[1759649444068,0.4411,4573.4,4573.3,0.7415]
[1759649444878,0.44362887,4573.4,4573.3,0.74375945]
[1759649448477,0.00252887,4573.4,4573.3,0.74375945]
[1759649448684,0.00252887,4573.4,4573.3,1.13726945]
[1759649448871,0.21032887,4573.4,4573.3,0.74375945]
[1759649449177,0.00252887,4573.4,4573.3,0.73995945]
[1759649449378,0.41552887,4573.4,4573.3,0.52535945]
[1759649449578,0.41552887,4573.4,4573.3,0.73995945]
[1759649450075,0.00252887,4573.4,4573.3,0.73995945]
[1759649451273,0.00252887,4573.4,4573.3,1.13346945]
[1759649452383,0.00252887,4573.4,4573.3,0.73995945]
[1759649455983,0.00252887,4573.4,4573.3,1.13346945]
[1759649456280,0.00252887,4573.4,4573.3,0.73995945]
[1759649456486,0.21032887,4573.4,4573.3,0.73995945]
[1759649456782,0.00252887,4573.4,4573.3,0.73995945]
[1759649457587,0.21032887,4573.4,4573.3,0.73995945]
[1759649457978,0.00252887,4573.4,4573.3,0.73995945]
[1759649463687,0.00252887,4573.4,4573.3,1.13346945]
[1759649463993,0.17653138,4575.6,4573.3,1.13346945]
[1759649463994,3.2078,4574.7,4574.6,0.7665]
[1759649464881,3.20996159,4574.7,4574.6,0.7665]
[1759649465685,0.00216159,4574.7,4574.6,0.7665]
[1759649466580,3.2078,4575.2,4575.1,0.4258]
[1759649466886,3.2078,4575.7,4575.6,1.15981]
[1759649467187,4.08217758,4575.7,4575.6,0.7665]
[1759649467583,4.0847204,4575.7,4575.6,0.7665]
[1759649467990,3.6717204,4575.7,4575.6,0.7665]
[1759649468894,3.6717204,4575.7,4575.6,1.15981]
[1759649470387,3.21034282,4575.7,4575.6,1.15981]
[1759649471785,3.41814282,4575.7,4575.6,1.15981]
[1759649472183,3.21034282,4575.7,4575.6,1.38381]
[1759649472388,3.62334282,4575.7,4575.6,0.5519]
[1759649472689,3.62334282,4575.7,4575.6,0.7665]
[1759649474495,3.87924282,4575.7,4575.6,0.5519]
[1759649474997,3.62334282,4575.7,4575.6,0.5519]
[1759649475192,3.87924282,4575.7,4575.6,0.5519]
[1759649475394,0.413,4575.2,4575.1,0.5519]
[1759649475600,0.413,4575.2,4575.1,1.15985]
[1759649476197,0.2078,4575.2,4575.1,1.15985]
[1759649477002,3.21034282,4575.7,4575.1,1.15985]
[1759649477298,0.4311,4575.6,4575.5,0.685]
[1759649478796,0.2164,4575.6,4575.5,0.89]
[1759649478999,3.21034282,4575.7,4575.6,1.15311]
[1759649479593,0.00254282,4575.7,4575.6,1.15311]
[1759649482600,0.69004282,4575.7,4575.6,0.3279]
[1759649482802,0.69004282,4575.7,4575.6,0.5548]
[1759649482999,0.43364282,4575.7,4575.6,0.7598]
[1759649483493,0.21894282,4575.7,4575.6,0.7598]
[1759649485693,0.21894282,4575.7,4574.8,3.2078]
[1759649485694,0.0645,4575.5,4574.5,3.42211279]
[1759649485901,0.2564,4574.3,4574.2,1.16862031]
[1759649486102,0.4311,4573.9,4573.8,0.2269]
[1759649486405,0.4311,4573.9,4573.6,0.3279]
[1759649486406,1.67963986,4573.9,4573.6,0.3279]
[1759649486703,0.4311,4573.7,4573.6,0.5548]
[1759649487202,0.6875,4573.7,4573.6,0.3279]
[1759649487404,0.4311,4573.7,4573.2,0.3279]
[1759649487598,0.4311,4573.4,4573.3,0.33015945]
[1759649487998,0.4311,4573.4,4573.3,0.55705945]
[1759649491005,0.4311,4573.4,4573.3,0.76205945]
[1759649494502,0.6873,4573.4,4573.3,0.76205945]
[1759649494808,0.4311,4573.4,4573.3,0.76205945]
[1759649495704,0.4311,4573.4,4573.3,1.15556945]
[1759649495900,0.228,4573.5,4573.4,0.33]
[1759649496104,0.228,4573.5,4573.4,0.773]
[1759649496404,0.4486,4573.5,4573.4,0.773]
[1759649496601,0.9128,4573.5,4573.4,0.5481]
[1759649498904,0.9128,4573.5,4573.4,0.33]
[1759649499310,0.9128,4573.5,4573.4,0.5481]
[1759649500200,0.6566,4573.5,4573.4,0.773]
[1759649500510,0.9128,4573.5,4573.3,0.00225945]
[1759649500714,0.6848,4573.4,4573.3,0.33225945]
[1759649501208,0.6848,4573.4,4573.3,0.55035945]
[1759649501404,0.4286,4573.4,4573.3,0.55035945]
[1759649501605,0.4286,4573.4,4573.3,0.77525945]
[1759649506217,3.2078,4573.8,4573.5,0.1274]
[1759649506516,0.4286,4573.6,4573.5,0.5704]
[1759649506913,0.4286,4573.6,4573.5,0.9004]
[1759649507312,0.6842,4573.6,4573.5,0.9004]
[1759649507721,0.4286,4573.6,4573.5,0.9004]
[1759649508314,0.6842,4573.6,4573.5,0.9004]
[1759649510224,1.67643295,4573.6,4573.5,0.9004]
[1759649510523,2.12675351,4573.6,4573.5,0.6755]
[1759649510722,1.13452056,4573.6,4573.3,0.31195945]
[1759649510923,1.68023295,4573.4,4573.3,0.21375945]
[1759649511118,1.90723295,4573.4,4573.3,0.52345945]
[1759649511619,1.65163295,4573.4,4573.3,0.52345945]
[1759649511820,1.65163295,4573.4,4573.3,0.73385945]
[1759649512425,2.10252295,4573.4,4573.3,0.73385945]
[1759649513717,2.10252295,4573.4,4573.3,0.00225945]
[1759649513718,2.35812295,4573.4,4573.3,0.00225945]
[1759649513919,0.4324,4573.1,4573.0,0.656]
[1759649514225,5.31032295,4573.1,4573.0,0.656]
[1759649514924,5.56592295,4573.1,4573.0,0.00213564]
[1759649515119,5.56592295,4573.1,4573.0,0.31183564]
[1759649516029,5.56592295,4573.1,4573.0,0.52333564]
[1759649516227,5.56592295,4573.1,4573.0,0.65813564]
[1759649516526,4.09109,4573.1,4573.0,0.65813564]
[1759649516734,4.31809,4573.1,4573.0,0.86853564]
[1759649517322,3.87489,4573.1,4573.0,0.86853564]
[1759649517533,3.88469,4573.1,4573.0,0.86853564]
[1759649517728,3.65869,4573.1,4573.0,0.86853564]
[1759649517932,3.88469,4573.1,4573.0,0.86853564]
[1759649518132,4.31709,4573.1,4573.0,0.86853564]
[1759649518335,5.56492295,4573.1,4573.0,0.31183564]
[1759649518534,5.56492295,4573.1,4573.0,0.00213564]
[1759649518731,4.09109,4573.1,4573.0,0.86853564]
[1759649519035,3.65869,4573.1,4573.0,0.86853564]
[1759649519829,3.87489,4573.1,4573.0,0.86853564]
[1759649520535,4.10189,4573.1,4573.0,0.86853564]
[1759649520930,4.31809,4573.1,4573.0,0.86853564]
[1759649521128,4.57369,4573.1,4573.0,0.65813564]
[1759649521634,5.56592295,4573.1,4573.0,0.00213564]
[1759649521928,5.56592295,4573.1,4573.0,0.31183564]
[1759649522135,5.56592295,4573.1,4573.0,0.00213564]
[1759649522431,4.57369,4573.1,4573.0,0.31183564]
[1759649522732,4.57369,4573.1,4573.0,0.65813564]
[1759649523328,4.57369,4573.1,4573.0,0.31183564]
[1759649524734,4.31809,4573.1,4573.0,0.86853564]
[1759649525536,4.09109,4573.1,4573.0,1.26206564]
[1759649525730,4.57369,4573.1,4573.0,0.65813564]
[1759649526731,4.57369,4573.1,4573.0,0.00213564]
[1759649526925,4.57369,4573.1,4573.0,0.31183564]
[1759649527132,4.57369,4573.1,4573.0,0.52333564]
[1759649527530,4.57369,4573.1,4573.0,0.31183564]
[1759649528237,4.31809,4573.1,4573.0,0.86853564]
[1759649529139,4.57369,4573.1,4573.0,0.86853564]
[1759649529840,4.34669,4573.1,4573.0,0.31183564]
[1759649530035,4.57369,4573.1,4573.0,0.31183564]
[1759649530235,4.57369,4573.1,4573.0,0.00213564]
[1759649536036,7.60156615,4573.1,4573.0,0.00213564]
[1759649536236,0.4324,4571.6,4571.5,0.656]
[1759649536437,4.31709,4571.6,4571.5,0.656]
[1759649536739,3.65869,4571.6,4571.5,0.8664]
[1759649537240,3.66077074,4571.6,4571.5,0.86921164]
[1759649538333,3.66077074,4571.6,4571.3,0.3263]
[1759649538334,0.2536,4571.5,4571.3,0.3263]
[1759649538538,1.36129,4571.4,4571.3,0.3263]
[1759649538739,0.45089,4571.4,4571.3,0.748]
[1759649538940,3.20988074,4571.6,4571.5,0.8796]
[1759649539142,3.88838674,4571.6,4571.5,0.8796]
[1759649539343,3.88838674,4571.6,4571.5,0.88186332]
[1759649539540,4.57278674,4571.6,4571.5,0.32856332]
[1759649540041,3.2078,4572.7,4572.6,0.2154]
[1759649540245,3.4329,4572.7,4572.6,0.748]
[1759649540740,3.8922,4572.7,4572.6,0.5417]
[1759649540942,3.8922,4572.7,4572.6,0.3263]
[1759649541142,3.89499886,4572.7,4572.6,0.5417]
[1759649541446,3.64139886,4572.7,4572.6,0.5417]
[1759649541745,3.64139886,4572.7,4572.6,0.93527]
[1759649541946,3.64139886,4572.7,4572.6,0.5417]
[1759649542140,3.89499886,4572.7,4572.6,0.3263]
[1759649542341,0.6844,4572.4,4572.3,0.3263]
[1759649542545,0.9104,4572.4,4572.3,0.3263]
[1759649542746,0.9104,4572.4,4572.3,0.5417]
[1759649543144,0.2251,4572.2,4572.1,0.3263]
[1759649543341,3.21059886,4572.7,4572.1,0.4217]
[1759649543537,0.226,4572.6,4572.5,0.5533]
[1759649544041,0.4511,4572.6,4572.5,0.8796]
[1759649544440,0.6568,4572.6,4572.5,0.8796]
[1759649544642,0.9104,4572.6,4572.5,0.8796]
[1759649545137,0.6568,4572.6,4572.5,0.8796]
[1759649545541,0.2251,4572.6,4572.5,0.8796]
[1759649545841,3.43569886,4572.7,4572.6,0.748]
[1759649546037,3.66169886,4572.7,4572.6,0.748]
[1759649546842,0.45389886,4572.7,4572.6,0.748]
[1759649547146,0.22879886,4572.7,4572.6,0.748]
[1759649547348,0.00279886,4572.7,4572.6,0.748]
[1759649551649,3.2078,4573.7,4573.6,1.15878]
[1759649551846,3.2078,4573.7,4573.6,2.30714719]
[1759649552041,0.45015844,4573.7,4573.6,1.91366719]